bitfinex/quotes_ETHUSD_20250329
["timestamp","ask_amount","ask_price","bid_price","bid_amount"]
[1743263806739,5.68843177,1841.4,1841.2,5.43108]
[1743263812657,5.68843177,1841.4,1841.2,10.86213]
[1743263813064,5.68843177,1841.4,1841.2,5.43105]
[1743263820226,5.68843177,1841.4,1841.3,5.43094]
[1743263820432,2.28873783,1841.7,1841.5,5.4301]
[1743263820632,5.00729776,1841.9,1841.6,5.42979]
[1743263820862,5.00729776,1841.9,1841.7,5.42954]
[1743263821063,3.0,1841.8,1841.7,5.42954]
[1743263822227,5.28873783,1841.9,1841.7,5.42954]
[1743263822833,5.28873783,1841.9,1841.7,10.85913]
[1743263823235,3.0,1841.9,1841.8,5.42947]
[1743263824289,3.40293508,1841.9,1841.7,6.93704]
[1743263824436,5.69167291,1841.9,1841.7,5.42954]
[1743263824743,5.69167291,1841.9,1841.7,10.8591]
[1743263825283,5.69167291,1841.9,1841.7,5.42954]
[1743263825437,5.69167291,1841.9,1841.7,10.85909]
[1743263826576,5.69167291,1841.9,1841.8,5.42947]
[1743263828266,5.69167291,1841.9,1841.7,5.42954]
[1743263830096,5.69167291,1841.9,1841.8,5.42947]
[1743263833551,5.69167291,1841.9,1841.7,5.42954]
[1743263833756,7.27987291,1841.9,1841.6,5.42997]
[1743263834172,7.27987291,1841.9,1841.6,10.85983]
[1743263834680,4.27987291,1841.9,1841.6,10.85983]
[1743263835393,2.28873783,1841.7,1841.5,5.43034]
[1743263835581,2.28873783,1841.7,1841.5,10.86053]
[1743263835893,2.28873783,1841.7,1841.5,5.43019]
[1743263838787,2.28873783,1841.7,1841.5,10.86035]
[1743263839085,2.28873783,1841.7,1841.6,5.43006]
[1743263839461,3.0,1841.8,1841.6,5.43006]
[1743263840092,0.40293508,1841.9,1841.8,5.42947]
[1743263840295,8.77680733,1842.4,1842.2,5.42829]
[1743263840460,8.77680733,1842.4,1842.1,5.4284]
[1743263840788,3.0,1842.3,1842.1,5.4284]
[1743263841300,3.0,1842.3,1842.1,10.8568]
[1743263841487,3.0,1842.3,1842.2,5.42829]
[1743263842776,6.06,1842.4,1842.3,5.42799]
[1743263843311,9.06,1842.4,1842.3,5.42799]
[1743263843626,9.46698813,1842.4,1842.3,5.42799]
[1743263845511,9.46698813,1842.4,1842.3,6.513618]
[1743263845713,28.741,1842.6,1842.5,5.4274]
[1743263845869,3.93773783,1842.9,1842.6,5.42682]
[1743263846074,3.0,1842.8,1842.6,5.42682]
[1743263846893,3.0,1842.8,1842.6,10.8538]
[1743263847171,3.0,1842.8,1842.6,11.93918]
[1743263848696,3.0,1842.8,1842.6,6.5122]
[1743263848899,3.0,1842.8,1842.6,5.42682]
[1743263849602,3.0,1842.8,1842.7,5.42681]
[1743263856403,3.0,1842.8,1842.7,6.99721]
[1743263857314,3.0,1842.8,1842.7,5.42681]
[1743263858713,3.0,1842.8,1842.6,6.99722]
[1743263858911,2.28873783,1842.7,1842.4,5.42745]
[1743263859317,2.28873783,1842.5,1842.4,5.42745]
[1743263859614,3.0,1842.4,1842.1,6.99884]
[1743263859809,2.28873783,1842.3,1842.1,5.42844]
[1743263859977,2.28873783,1842.3,1842.0,6.99925]
[1743263859978,2.28873783,1842.3,1842.0,5.42881]
[1743263860514,2.28873783,1842.1,1842.0,5.42881]
[1743263861082,2.28873783,1842.3,1842.0,5.42881]
[1743263861500,2.28873783,1842.3,1842.1,5.42839]
[1743263861912,2.28873783,1842.3,1842.0,5.42879]
[1743263862913,2.28873783,1842.3,1842.1,5.42854]
[1743263863113,2.28873783,1842.3,1842.2,5.42829]
[1743263863283,2.28873783,1842.3,1842.1,5.42854]
[1743263863483,2.28873783,1842.3,1842.2,5.42829]
[1743263863683,2.28873783,1842.3,1842.0,5.42887]
[1743263864711,2.28873783,1842.3,1842.0,10.85755]
[1743263868917,2.28873783,1842.3,1842.0,5.42868]
[1743263870318,2.28873783,1842.3,1842.0,10.85738]
[1743263870520,2.28873783,1842.3,1842.1,5.42858]
[1743263873022,2.28873783,1842.3,1842.1,5.42845]
[1743263873230,2.28873783,1842.3,1842.1,5.42844]
[1743263873607,2.28873783,1842.3,1842.0,5.4288]
[1743263873798,3.0,1842.2,1842.0,5.4288]
[1743263873994,0.5443,1842.1,1842.0,5.4288]
[1743263874198,3.0,1842.2,1842.0,5.4288]
[1743263879937,3.0,1842.2,1842.1,5.42858]
[1743263881839,3.0,1842.2,1842.0,5.4288]
[1743263882345,2.28873783,1842.1,1842.0,5.4288]
[1743263884269,2.28873783,1842.1,1841.9,5.42916]
[1743263884421,5.42916,1841.9,1841.7,5.42962]
[1743263884750,2.28873783,1841.9,1841.8,5.42947]
[1743263886440,3.0,1842.0,1841.9,5.42917]
[1743263889164,3.0,1842.0,1841.8,5.42928]
[1743263889329,3.0,1842.0,1841.8,10.85856]
[1743263890765,3.0,1842.0,1841.9,5.42917]
[1743263892543,3.0,1842.0,1841.8,5.42928]
[1743263892738,2.28873783,1841.9,1841.7,10.8593]
[1743263892938,2.28873783,1841.9,1841.7,5.42958]
[1743263893370,2.28873783,1841.9,1841.7,10.85915]
[1743263893568,2.28873783,1841.9,1841.8,5.42947]
[1743263894354,3.0,1842.0,1841.9,5.42917]
[1743263895238,3.0,1842.0,1841.8,5.42937]
[1743263896865,3.0,1842.0,1841.8,5.42936]
[1743263897268,6.91503783,1841.9,1841.5,5.43035]
[1743263897432,6.91503783,1841.9,1841.6,5.42993]
[1743263897635,6.91503783,1841.9,1841.6,10.85979]
[1743263898448,6.91503783,1841.9,1841.7,5.42975]
[1743263898965,7.31486743,1841.9,1841.7,5.42975]
[1743263900377,7.31486743,1841.9,1841.6,5.42986]
[1743263900539,7.31486743,1841.9,1841.6,10.85972]
[1743263900873,7.31486743,1841.9,1841.7,5.42973]
[1743263903274,0.3998296,1841.9,1841.8,5.42947]
[1743263903473,5.28873783,1842.1,1841.8,10.85894]
[1743263905270,5.28873783,1842.1,1841.9,5.42913]
[1743263905568,5.28873783,1842.1,1841.8,10.85883]
[1743263905770,5.28873783,1842.1,1841.9,5.42913]
[1743263906667,5.28873783,1842.1,1842.0,5.42888]
[1743263906973,5.28873783,1842.1,1841.9,5.42903]
[1743263907143,5.28873783,1842.1,1842.0,5.42888]
[1743263907662,5.28873783,1842.1,1841.9,7.02603]
[1743263909247,6.06,1842.2,1842.0,5.42888]
[1743263909450,6.06,1842.2,1842.1,5.42858]
[1743263909671,3.0,1842.3,1842.1,5.42858]
[1743263911881,3.0,1842.3,1842.0,5.42888]
[1743263912183,2.28873783,1842.2,1842.0,5.42869]
[1743263913277,3.93583783,1842.2,1841.9,5.42904]
[1743263914091,3.41133126,1842.4,1842.0,1.5315]
[1743263914284,3.41133126,1842.4,1842.2,5.42801]
[1743263914983,3.41133126,1842.4,1842.2,10.85619]
[1743263915281,3.41133126,1842.4,1842.2,5.42801]
[1743263915487,3.41133126,1842.4,1842.2,6.95951]
[1743263918568,3.41133126,1842.4,1842.3,5.42799]
[1743263918766,8.34873783,1842.5,1842.3,5.42799]
[1743263918767,2.28873783,1842.7,1842.4,5.42742]
[1743263919091,2.28873783,1842.7,1842.5,6.95882]
[1743263919402,3.0,1842.7,1842.5,6.95882]
[1743263921690,3.41793428,1842.7,1842.5,6.95882]
[1743263922384,5.28873783,1842.6,1842.5,1.5315]
[1743263922558,2.28873783,1842.6,1842.5,1.5315]
[1743263923590,3.41793428,1842.7,1842.5,6.9589]
[1743263923888,28.738,1842.8,1842.7,5.42681]
[1743263924088,8.34873783,1843.0,1842.7,6.95831]
[1743263924277,3.0,1842.9,1842.7,6.95831]
[1743263924483,3.40879107,1842.9,1842.7,6.95813]
[1743263924891,3.40879107,1842.9,1842.8,5.42652]
[1743263925077,0.40879107,1842.9,1842.8,0.6786348]
[1743263925282,8.34873783,1843.0,1842.8,0.6786348]
[1743263925600,8.34873783,1843.0,1842.7,6.95813]
[1743263925765,3.0,1842.9,1842.7,12.38477]
[1743263926577,3.0,1842.9,1842.8,5.42652]
[1743263927089,3.0,1842.9,1842.7,6.95813]
[1743263927264,3.0,1842.9,1842.7,1.5315]
[1743263927659,3.0,1842.9,1842.6,5.42698]
[1743263928784,3.41641953,1842.9,1842.6,5.42698]
[1743263930099,2.28873783,1842.8,1842.6,5.42698]
[1743263930271,2.28873783,1842.8,1842.5,6.67138911]
[1743263930471,2.28873783,1842.8,1842.5,6.67124911]
[1743263930665,2.28873783,1842.8,1842.5,5.42719]
[1743263931998,2.28873783,1842.8,1842.5,10.85444]
[1743263932401,2.28873783,1842.8,1842.5,10.85448]
[1743263932567,2.28873783,1842.8,1842.5,5.42719]
[1743263932897,2.28873783,1842.8,1842.5,10.85444]
[1743263934399,2.28873783,1842.8,1842.6,5.42698]
[1743263935598,2.28873783,1842.8,1842.5,5.42739]
[1743263936394,7.71527783,1842.8,1842.5,5.42739]
[1743263936596,2.28873783,1842.6,1842.4,7.07008]
[1743263940102,1.75781462,1842.6,1842.4,7.07008]
[1743263940473,1.75781462,1842.6,1842.4,7.06993]
[1743263941102,1.75781462,1842.6,1842.5,5.4274]
[1743263942072,1.75781462,1842.6,1842.4,7.07004]
[1743263943501,1.75781462,1842.6,1842.4,12.49758]
[1743263944412,3.0,1842.5,1842.2,5.42816]
[1743263944584,2.28873783,1842.3,1842.2,5.42816]
[1743263946520,7.15669695,1843.0,1842.4,1.5892]
[1743263946675,11.48607,1843.0,1842.6,5.42693]
[1743263946875,5.28873783,1842.9,1842.6,5.42705]
[1743263947919,5.68842869,1842.9,1842.7,7.01573]
[1743263948121,3.39969086,1842.9,1842.8,5.42652]
[1743263948323,0.39969086,1842.9,1842.8,6.6761718]
[1743263948493,5.28873783,1843.1,1842.9,5.4262]
[1743263950227,5.28873783,1843.1,1842.8,6.6761718]
[1743263950602,5.28873783,1843.1,1842.9,5.42622]
[1743263950929,2.28873783,1843.1,1842.9,1.21023918]
[1743263951224,5.28873783,1843.1,1842.8,5.42652]
[1743263951426,5.69244366,1843.1,1842.8,5.42652]
[1743263951630,5.69244366,1843.1,1842.9,5.42618]
[1743263952493,5.69244366,1843.1,1842.9,10.85216]
[1743263952698,5.69244366,1843.1,1842.9,5.42598]
[1743263954425,5.69244366,1843.1,1843.0,5.42593]
[1743263954732,2.69244366,1843.1,1842.9,5.42598]
[1743263955027,2.69244366,1843.1,1843.0,5.42593]
[1743263956696,2.69244366,1843.1,1842.9,5.968578]
[1743263957620,2.69244366,1843.1,1842.9,11.394588]
[1743263957831,2.69244366,1843.1,1842.9,5.968578]
[1743263958398,7.19204366,1843.1,1842.8,10.85281]
[1743263958622,2.28873783,1842.9,1842.8,10.85281]
[1743263959229,2.69244366,1843.1,1842.9,5.42623]
[1743263959432,2.69244366,1843.1,1843.0,5.42593]
[1743263960399,2.69244366,1843.1,1843.0,6.98493]
[1743263961205,2.69244366,1843.1,1842.9,10.85223]
[1743263961408,2.69244366,1843.1,1843.0,5.42593]
[1743263961605,2.69244366,1843.1,1842.9,6.667123]
[1743263961803,2.69244366,1843.1,1843.0,5.42593]
[1743263962009,0.40370583,1843.1,1843.0,6.98493]
[1743263962220,3.0,1843.2,1843.1,5.42564]
[1743263963845,3.40946259,1843.2,1843.1,5.42564]
[1743263965714,5.69820042,1843.2,1843.1,5.42564]
[1743263968049,3.40946259,1843.2,1843.1,5.42564]
[1743263968343,3.40946259,1843.2,1843.1,8.069797]
[1743263969850,0.40946259,1843.2,1843.1,8.069797]
[1743263970023,5.28873783,1843.4,1843.2,5.42534]
[1743263970616,3.0,1843.4,1843.3,5.42505]
[1743263970821,5.28873783,1843.4,1843.3,5.42505]
[1743263971455,5.28873783,1843.4,1843.2,5.42525]
[1743263972154,5.69150918,1843.4,1843.2,5.42525]
[1743263973027,5.69150918,1843.4,1843.1,5.42556]
[1743263973341,2.28873783,1843.2,1843.1,5.42556]
[1743263976756,5.69150918,1843.4,1843.2,5.42534]
[1743263976960,5.28873783,1843.4,1843.3,5.42505]
[1743263981066,5.70693447,1843.4,1843.3,5.42505]
[1743263987155,5.70693447,1843.4,1843.1,1.5139]
[1743263987478,2.28873783,1843.2,1843.1,5.42541]
[1743263987678,2.28873783,1843.2,1842.9,5.42622]
[1743263987880,2.28873783,1843.0,1842.9,5.42622]
[1743263988886,2.28873783,1843.0,1842.9,6.511491]
[1743263989404,5.28873783,1843.0,1842.9,6.511491]
[1743263989762,3.0,1843.0,1842.9,7.329691]
[1743263999892,4.23670159,1843.9,1843.5,0.8182]
[1743264000119,0.207,1844.8,1844.5,5.42139]
[1743264000750,0.207,1844.8,1843.6,0.05422979]
[1743264000751,0.40006418,1844.4,1843.1,6.08]
[1743264000944,2.28873783,1844.2,1843.1,9.02529691]
[1743264001629,0.55,1844.7,1843.2,0.8182]
[1743264001630,2.28873783,1844.4,1843.2,0.8182]
[1743264001801,5.28873783,1844.4,1844.2,5.42215]
[1743264002003,5.28873783,1844.4,1844.2,10.84441]
[1743264002205,5.28873783,1844.4,1844.2,5.42215]
[1743264002439,5.28873783,1844.4,1844.0,10.84546]
[1743264002915,5.28873783,1844.4,1844.1,5.42268]
[1743264003111,2.28873783,1844.4,1844.1,5.42254]
[1743264003441,2.28873783,1844.4,1844.2,5.42229]
[1743264004038,2.28873783,1844.4,1844.1,10.8451]
[1743264004501,2.28873783,1844.4,1844.2,5.42236]
[1743264004706,2.28873783,1844.4,1844.1,10.8451]
[1743264004933,2.28873783,1844.2,1843.9,0.8182]
[1743264005135,3.0,1844.3,1843.9,5.42311]
[1743264005326,3.8314,1844.4,1844.0,5.42284]
[1743264005727,2.28873783,1844.1,1843.8,10.58236]
[1743264006035,5.28873783,1844.1,1843.8,10.58236]
[1743264006202,3.8314,1844.0,1843.6,16.00698]
[1743264006408,5.28873783,1843.9,1843.7,5.42386]
[1743264006736,2.28873783,1843.9,1843.7,5.42374]
[1743264006940,2.28873783,1843.9,1843.6,5.42394]
[1743264007310,0.8314,1844.0,1843.7,5.42374]
[1743264007827,3.0,1843.9,1843.5,5.42443]
[1743264008621,3.8314,1844.0,1843.6,5.42403]
[1743264009537,9.2544,1844.0,1843.5,5.42441]
[1743264009842,9.2544,1844.0,1843.6,5.42405]
[1743264009843,3.8314,1844.0,1843.6,5.42405]
[1743264010011,3.8314,1844.0,1843.6,10.84797]
[1743264010207,0.8314,1844.0,1843.8,5.42346]
[1743264010412,0.8314,1844.0,1843.9,5.42328]
[1743264010640,0.8314,1844.0,1843.8,5.42344]
[1743264012746,0.8314,1844.0,1843.8,10.8469]
[1743264013242,0.8314,1844.0,1843.8,5.42344]
[1743264013613,3.12013783,1844.2,1844.0,5.42292]
[1743264014014,3.12013783,1844.2,1843.9,5.42302]
[1743264014214,6.12013783,1844.4,1844.1,5.42258]
[1743264014833,2.28873783,1844.2,1843.9,5.42321]
[1743264016611,0.8314,1844.1,1843.9,5.42321]
[1743264016816,2.28873783,1844.0,1843.8,5.42339]
[1743264017043,5.28873783,1844.0,1843.8,10.84675]
[1743264017241,2.28873783,1844.0,1843.8,10.84675]
[1743264019317,2.28873783,1844.0,1843.8,5.42336]
[1743264020747,2.28873783,1844.0,1843.8,10.84675]
[1743264021249,2.28873783,1844.0,1843.8,5.42336]
[1743264022222,2.28873783,1844.0,1843.8,10.84677]
[1743264022722,2.28873783,1844.0,1843.8,5.42336]
[1743264022922,2.28873783,1844.0,1843.7,5.42379]
[1743264023285,5.28873783,1844.0,1843.7,5.42379]
[1743264026372,5.28873783,1844.0,1843.5,0.7848]
[1743264026373,2.28873783,1843.8,1843.5,6.20912]
[1743264026558,3.0,1843.7,1843.5,7.103504]
[1743264026757,3.0,1843.7,1843.5,12.527764]
[1743264027540,3.0,1843.7,1843.6,5.42417]
[1743264034974,5.28873783,1844.0,1843.7,5.42387]
[1743264035178,10.71172783,1844.0,1843.6,6.19832]
[1743264035674,2.28873783,1843.8,1843.6,6.19832]
[1743264036777,2.28873783,1843.8,1843.6,11.62226]
[1743264036978,2.28873783,1843.8,1843.7,5.42387]
[1743264037878,2.28873783,1843.8,1843.6,6.19827]
[1743264038049,2.28873783,1843.8,1843.6,5.42407]
[1743264038245,3.08383783,1843.8,1843.6,5.42407]
[1743264038977,3.0,1844.1,1843.9,5.42328]
[1743264039280,0.41172039,1844.3,1844.1,5.42269]
[1743264039446,6.50619093,1844.4,1844.2,5.4224]
[1743264039646,4.2174531,1844.4,1844.3,5.42211]
[1743264039851,4.2174531,1844.4,1844.3,7.34037946]
[1743264040073,1.51465004,1844.4,1844.3,7.34037796]
[1743264040459,5.28873783,1844.8,1844.5,5.42146]
[1743264040957,2.28873783,1844.7,1844.5,5.42146]
[1743264041152,2.28873783,1844.7,1844.5,10.8428]
[1743264041353,2.71651187,1845.1,1844.9,5.42007]
[1743264041554,2.71651187,1845.1,1844.9,10.84023]
[1743264041555,1.92141187,1845.1,1844.9,10.84023]
[1743264041758,0.40676183,1845.1,1845.0,5.42005]
[1743264042147,0.40676183,1845.1,1845.0,6.24844797]
[1743264042346,2.28873783,1845.5,1845.2,5.41942]
[1743264043150,2.28873783,1845.5,1845.4,5.41887]
[1743264043575,2.28873783,1845.7,1845.5,5.41836]
[1743264044478,2.28873783,1845.7,1845.4,6.19294]
[1743264044874,2.69961742,1845.7,1845.4,6.19294]
[1743264045068,0.1104055,1845.8,1845.7,5.41799]
[1743264045282,0.1104055,1845.8,1845.7,6.19219]
[1743264045283,5.5e-06,1845.8,1845.7,6.19219]
[1743264045479,1.21016246,1846.5,1846.3,6.19043]
[1743264045683,1.21016246,1846.5,1846.3,6.24458023]
[1743264045848,1.21016246,1846.5,1845.8,5.4177]
[1743264045849,3.0,1846.3,1846.0,6.19111]
[1743264046056,3.0,1846.3,1846.0,0.7742]
[1743264046254,1.51622159,1846.4,1846.3,5.41623]
[1743264046449,2.28873783,1846.6,1846.4,5.4158]
[1743264046655,2.28873783,1846.6,1846.3,5.41619]
[1743264046953,3.0,1846.2,1845.8,5.41755]
[1743264047170,2.28873783,1846.1,1846.0,5.41711]
[1743264047358,3.0,1846.3,1846.0,5.41711]
[1743264047359,2.28873783,1846.3,1846.1,5.4167]
[1743264047758,2.28873783,1846.3,1846.2,5.41653]
[1743264047958,2.28873783,1846.3,1846.1,10.8334]
[1743264048169,2.28873783,1846.4,1846.2,5.41653]
[1743264048360,2.28873783,1846.4,1846.2,5.41627]
[1743264048566,2.28873783,1846.4,1846.2,10.83267]
[1743264048884,6.06,1846.7,1846.6,5.41535]
[1743264049055,8.75888356,1847.1,1846.7,5.41484]
[1743264049250,8.34873783,1847.1,1846.7,5.41484]
[1743264049454,8.34873783,1847.1,1846.8,5.4146]
[1743264049677,3.0,1847.0,1846.9,5.41447]
[1743264049878,5.28873783,1847.1,1846.9,5.41447]
[1743264050187,5.28873783,1847.1,1847.0,5.41418]
[1743264050549,2.28873783,1847.1,1847.0,5.41418]
[1743264050763,0.28315624,1847.4,1846.9,0.7977]
[1743264050962,8.62709418,1847.5,1847.0,5.41394]
[1743264051150,8.62709418,1847.5,1846.8,5.41454]
[1743264051151,2.56709418,1847.1,1846.8,5.41454]
[1743264051585,2.56709418,1847.1,1846.9,5.41446]
[1743264051953,2.56709418,1847.1,1847.0,5.41418]
[1743264052160,2.56709418,1847.1,1846.7,5.41481]
[1743264052360,5.56709418,1846.9,1846.8,5.41453]
[1743264052561,3.0,1846.9,1846.8,5.41453]
[1743264053158,2.56709418,1847.2,1847.1,5.41389]
[1743264053681,6.06,1847.5,1847.4,5.41301]
[1743264053985,3.45400528,1847.6,1847.4,5.41301]
[1743264053986,9.51400528,1847.6,1847.4,5.41301]
[1743264054287,3.0,1847.5,1847.4,5.41301]
[1743264054523,8.73680528,1847.6,1847.4,5.41301]
[1743264054986,8.73680528,1847.6,1847.1,5.41384]
[1743264054987,3.7772,1847.4,1847.2,5.41358]
[1743264055294,6.9469111,1847.6,1847.5,5.41271]
[1743264055461,9.51400528,1847.6,1847.5,5.41271]
[1743264056090,3.1097111,1847.6,1847.5,5.41271]
[1743264056303,0.1097111,1847.6,1847.5,6.23221]
[1743264056595,0.1097111,1847.6,1847.4,5.41292]
[1743264056893,0.1097111,1847.6,1847.5,5.41271]
[1743264057192,3.1097111,1847.6,1847.5,5.41271]
[1743264057574,0.1097111,1847.6,1847.5,5.41271]
[1743264059463,1.1e-06,1847.6,1847.5,6.28632974]
[1743264059799,1.1e-06,1847.6,1847.5,7.40213497]
[1743264059999,1.1e-06,1847.6,1847.5,6.28632989]
[1743264060494,1.1e-06,1847.6,1847.5,6.23221]
[1743264061714,1.1e-06,1847.6,1847.5,5.41271]
[1743264062217,5.56709528,1847.6,1847.5,5.41271]
[1743264062419,3.0,1847.5,1847.4,5.41292]
[1743264062613,2.56709528,1847.6,1847.5,5.41271]
[1743264063515,1.1e-06,1847.6,1847.5,5.41271]
[1743264063690,3.0000011,1847.6,1847.5,5.41271]
[1743264064313,3.0000011,1847.6,1847.4,5.41292]
[1743264064536,3.0000011,1847.6,1847.2,5.41341]
[1743264064537,2.56709418,1847.5,1847.2,5.41341]
[1743264064720,2.56709418,1847.5,1847.3,5.41319]
[1743264064920,2.56709418,1847.5,1847.3,5.41308]
[1743264065121,2.56709418,1847.5,1847.4,5.41301]
[1743264065719,10.82609,1847.3,1846.9,5.41431]
[1743264066025,2.56709418,1847.2,1846.9,5.41431]
[1743264066200,2.56709418,1847.2,1847.0,5.4141]
[1743264066719,2.56709418,1847.2,1846.9,10.82866]
[1743264066918,3.0,1846.9,1846.8,5.41473]
[1743264068097,3.0,1846.9,1846.7,5.41481]
[1743264068298,3.0,1846.7,1846.6,5.41528]
[1743264068808,2.56709418,1846.9,1846.6,6.498237]
[1743264069004,2.56709418,1846.9,1846.6,5.41515]
[1743264069405,2.56709418,1846.9,1846.7,5.41494]
[1743264069606,5.41461,1846.9,1846.4,5.41579]
[1743264069816,3.0,1846.5,1846.4,5.41586]
[1743264070130,3.0,1846.5,1846.3,5.41612]
[1743264070826,3.0,1846.5,1846.3,10.83218]
[1743264071130,0.8217,1846.7,1846.3,10.83218]
[1743264071131,5.56709418,1846.4,1846.3,0.88651163]
[1743264071300,2.56709418,1846.4,1846.2,5.41647]
[1743264071901,2.56709418,1846.4,1846.1,5.4166]
[1743264072103,3.0,1846.1,1846.0,5.4171]
[1743264072308,2.56709418,1846.2,1846.1,5.41682]
[1743264072529,2.56709418,1846.2,1846.1,6.500212]
[1743264074032,3.0,1846.6,1846.4,5.41566]
[1743264074244,3.0,1846.6,1846.3,5.41622]
[1743264074446,3.0,1846.6,1846.3,10.83222]
[1743264074746,3.0,1846.6,1846.4,5.41576]
[1743264074947,3.0,1846.6,1846.5,5.41565]
[1743264075097,3.0,1846.6,1846.4,10.83151]
[1743264075300,3.0,1846.6,1846.4,5.41575]
[1743264075838,3.0,1846.6,1846.4,10.83157]
[1743264076023,3.0,1846.6,1846.4,5.41575]
[1743264076556,2.56709418,1846.5,1846.3,5.41618]
[1743264078529,2.56709418,1846.5,1846.3,10.83222]
[1743264078928,2.56709418,1846.5,1846.4,5.41594]
[1743264079713,2.56709418,1846.5,1846.3,6.499262]
[1743264079915,2.56709418,1846.5,1846.2,5.41651]
[1743264080132,3.0,1846.2,1846.1,5.41676]
[1743264080325,2.56709418,1846.3,1846.1,5.41676]
[1743264080911,2.56709418,1846.3,1846.0,5.41709]
[1743264081104,2.56709418,1846.3,1846.0,10.834]
[1743264081308,2.56709418,1846.3,1846.0,11.99385]
[1743264081510,2.56709418,1846.1,1845.9,6.18176]
[1743264081709,3.0,1846.0,1845.9,6.18176]
[1743264083140,3.0,1846.0,1845.9,5.41726]
[1743264083641,3.0,1846.0,1845.8,10.83486]
[1743264083836,3.0,1846.0,1845.8,5.41741]
[1743264084337,3.0,1846.0,1845.8,6.577397]
[1743264084916,3.0,1846.0,1845.8,11.994897]
[1743264085242,3.0,1846.0,1845.8,6.577397]
[1743264086444,3.0,1846.0,1845.9,5.41741]
[1743264086743,3.0,1846.0,1845.8,6.577397]
[1743264086946,3.0,1845.8,1845.6,5.41817]
[1743264087244,3.0,1845.8,1845.6,6.578293]
[1743264087813,3.0,1845.6,1845.4,6.038134]
[1743264088014,3.0,1845.6,1845.3,6.1836]
[1743264088347,3.0,1845.6,1845.4,5.41885]
[1743264089643,3.0,1845.6,1845.3,6.18366]
[1743264089843,3.0,1845.4,1845.3,6.18355]
[1743264090047,3.0,1845.4,1845.3,7.343844]
[1743264090750,3.0,1845.4,1845.3,6.579344]
[1743264092016,2.56709418,1845.7,1845.3,1.160294]
[1743264092221,3.0,1845.6,1845.3,5.41902]
[1743264092447,3.0,1845.4,1845.3,5.41902]
[1743264093847,3.0,1845.4,1845.2,5.41929]
[1743264094047,3.0,1845.4,1845.2,10.83856]
[1743264094754,3.0,1845.4,1845.3,5.41917]
[1743264097656,3.0,1845.4,1845.2,5.41937]
[1743264098555,3.0,1845.4,1845.2,5.41926]
[1743264098762,3.0,1845.4,1845.2,6.037636]
[1743264099257,3.0,1845.4,1845.3,5.41917]
[1743264099427,3.0,1845.6,1845.4,5.41877]
[1743264099629,2.56709418,1845.7,1845.4,5.41872]
[1743264099955,3.0,1845.6,1845.4,5.41872]
[1743264100942,3.0,1845.6,1845.4,10.83741]
[1743264101146,3.0,1845.6,1845.4,5.41882]
[1743264101753,3.0,1845.6,1845.5,5.41858]
[1743264102262,3.0,1845.6,1845.4,5.41877]
[1743264102461,3.0,1845.6,1845.4,5.41867]
[1743264102836,2.28079726,1845.5,1845.4,5.41867]
[1743264106731,2.28079726,1845.5,1845.3,5.41912]
[1743264107161,3.0,1845.4,1845.3,5.41912]
[1743264108361,2.28079726,1845.5,1845.4,5.41887]
[1743264109459,5.28079726,1845.5,1845.4,5.41887]
[1743264109665,5.28079726,1845.5,1845.4,6.502669]
[1743264110164,5.28079726,1845.5,1845.4,5.41887]
[1743264111030,11.29079726,1845.5,1845.4,5.41887]
[1743264111432,9.01,1845.5,1845.4,5.41887]
[1743264111631,6.01,1845.8,1845.7,5.41799]
[1743264111828,2.28079726,1845.8,1845.7,6.16959]
[1743264112084,2.28079726,1845.8,1845.7,7.328367]
[1743264118772,2.28079726,1845.8,1845.6,10.83632]
[1743264119373,2.28079726,1845.8,1845.7,5.41799]
[1743264119573,5.28079726,1845.8,1845.7,5.41799]
[1743264121574,5.28079726,1845.8,1845.7,6.22376416]
[1743264123271,5.28079726,1845.8,1845.7,6.16959]
[1743264123679,5.28079726,1845.8,1845.7,0.7516]
[1743264123977,2.28079726,1845.8,1845.6,5.41804]
[1743264124348,2.28079726,1845.8,1845.4,10.64066]
[1743264124549,3.0,1845.8,1845.5,5.41843]
[1743264124850,3.0,1845.8,1845.5,5.41839]
[1743264125359,6.22621,1845.9,1845.4,5.41887]
[1743264125360,3.0,1845.9,1845.4,5.41887]
[1743264125577,3.8088,1845.7,1845.4,5.41887]
[1743264125878,2.28079726,1845.5,1845.4,5.41887]
[1743264128779,11.29079726,1845.5,1845.4,5.41887]
[1743264129782,3.0,1845.4,1845.3,5.41917]
[1743264129984,3.0,1845.4,1845.3,7.025033]
[1743264132260,3.0,1845.4,1845.3,5.41917]
[1743264137198,3.0,1845.4,1845.3,5.47335924]
[1743264137398,2.28079726,1845.8,1845.7,5.41799]
[1743264138507,3.0,1845.7,1845.5,5.41837]
[1743264138808,2.28079726,1845.6,1845.5,10.83677]
[1743264139598,3.0,1845.9,1845.7,5.41778]
[1743264139801,3.0,1845.9,1845.8,5.4177]
[1743264140103,8.29079726,1846.1,1846.0,5.41711]
[1743264140672,6.01,1846.1,1846.0,5.41711]
[1743264140993,8.29079726,1846.4,1846.2,5.41642]
[1743264141187,8.29079726,1846.4,1846.3,5.41623]
[1743264141506,11.29079726,1846.4,1846.3,6.21353]
[1743264141690,2.28079726,1846.4,1846.3,6.21353]
[1743264141891,6.01,1846.6,1846.5,5.41565]
[1743264142098,11.29079726,1846.6,1846.5,5.41565]
[1743264142302,8.29079726,1846.6,1846.5,5.41565]
[1743264142609,11.29079726,1846.6,1846.5,5.41565]
[1743264143307,3.0,1846.5,1846.4,5.41583]
[1743264143806,3.0,1846.5,1846.1,11.6305]
[1743264143972,2.28079726,1846.2,1846.1,6.2139]
[1743264145377,2.28079726,1846.2,1846.1,5.4166]
[1743264146194,11.29079726,1846.2,1846.1,5.4166]
[1743264148416,9.01,1846.2,1846.1,6.499962]